bitfinex-derivatives/quotes_ETHF0:USTF0_20240927
["timestamp","ask_amount","ask_price","bid_price","bid_amount"]
[1727444139492,0.5869,2653.4,2652.8,3.811]
[1727444139493,0.37683,2653.1,2652.8,3.811]
[1727444139797,0.37683,2653.1,2652.8,0.6032]
[1727444139994,0.37683,2653.1,2652.5,3.812]
[1727444139995,0.37684,2653.0,2652.5,3.812]
[1727444140389,3.2078,2653.2,2652.5,3.812]
[1727444140888,0.5869,2653.4,2652.9,3.2078]
[1727444141110,1.7609,2653.4,2652.9,3.2078]
[1727444141403,0.37682,2653.1,2652.9,3.2078]
[1727444142103,0.5869,2653.4,2652.9,3.2078]
[1727444142500,0.3768,2653.3,2652.9,3.2078]
[1727444142706,0.37679,2653.4,2652.9,3.58465]
[1727444142900,0.37679,2653.4,2652.9,3.2078]
[1727444143099,0.37679,2653.4,2653.0,0.5539]
[1727444143406,0.37679,2653.3,2653.0,0.5539]
[1727444143601,0.37678,2653.4,2653.0,0.5539]
[1727444143799,0.37679,2653.3,2653.0,0.5539]
[1727444144698,0.37679,2653.4,2653.0,0.5539]
[1727444144907,0.37675,2653.6,2653.2,3.2078]
[1727444145096,1.174,2653.7,2653.1,0.96081]
[1727444145097,0.37677,2653.5,2653.3,0.5663]
[1727444145293,1.174,2653.7,2653.3,0.5663]
[1727444145294,0.37676,2653.6,2653.3,0.5663]
[1727444145511,0.37676,2653.5,2653.3,0.5663]
[1727444145808,0.37674,2653.7,2653.3,0.5663]
[1727444146102,0.37675,2653.6,2653.3,0.5663]
[1727444146313,3.98,2653.8,2653.3,0.5663]
[1727444146497,7.1878,2653.8,2653.3,0.5663]
[1727444146898,0.37678,2653.4,2653.3,0.5663]
[1727444147097,0.94184,2653.7,2653.3,0.5663]
[1727444147710,0.37676,2653.6,2653.3,0.5663]
[1727444148614,0.37675,2653.6,2653.3,0.5663]
[1727444148808,0.37675,2653.6,2653.3,3.7741]
[1727444149198,4.92183,2653.8,2653.3,3.7741]
[1727444149407,0.37678,2653.4,2653.3,0.5663]
[1727444149608,0.37677,2653.5,2653.3,0.5663]
[1727444150103,0.37676,2653.6,2653.3,3.7741]
[1727444150303,0.37678,2653.4,2653.3,0.5663]
[1727444150498,0.37677,2653.5,2653.3,0.5663]
[1727444151996,0.37678,2653.4,2653.3,0.5663]
[1727444152201,0.37677,2653.5,2653.3,0.5663]
[1727444153311,0.37677,2653.5,2653.3,3.7741]
[1727444153513,8.12963,2653.8,2653.3,3.7741]
[1727444153708,0.37677,2653.5,2653.3,3.7741]
[1727444154512,0.5762,2653.9,2653.3,7.5429]
[1727444154704,0.94176,2654.0,2653.3,0.94308]
[1727444154907,0.94176,2654.0,2653.5,3.2078]
[1727444155216,7.1878,2654.1,2653.6,0.565]
[1727444155415,7.56448,2654.1,2653.6,0.565]
[1727444155617,1.198,2654.4,2653.6,0.565]
[1727444155812,0.3767,2654.0,2653.8,3.2078]
[1727444156212,0.3767,2654.0,2653.6,0.565]
[1727444156416,0.3767,2653.9,2653.8,3.2078]
[1727444156718,0.3767,2653.9,2653.6,0.565]
[1727444156916,0.3767,2654.0,2653.6,0.94174]
[1727444157111,0.3767,2654.0,2653.6,0.565]
[1727444157312,0.37671,2653.9,2653.7,0.6175]
[1727444157510,0.3767,2654.0,2653.7,0.6175]
[1727444157808,0.37672,2653.8,2653.7,0.6175]
[1727444158409,3.60672,2653.8,2653.7,0.6175]
[1727444158918,9.85972,2653.8,2653.7,0.6175]
[1727444159220,6.253,2653.6,2653.3,0.5663]
[1727444159512,6.253,2653.6,2653.2,1.2055]
[1727444159513,3.23,2653.4,2653.2,1.2055]
[1727444159710,3.23,2653.4,2653.2,1.808]
[1727444160124,9.85975,2653.6,2653.2,1.808]
[1727444160616,9.483,2653.6,2653.2,1.808]
[1727444160818,9.85976,2653.6,2653.2,1.808]
[1727444161017,0.37677,2653.5,2653.2,1.808]
[1727444161230,0.37676,2653.5,2653.2,1.808]
[1727444161421,0.37677,2653.5,2653.2,1.808]
[1727444161614,9.29429575,2653.6,2653.2,1.808]
[1727444161920,0.37677,2653.5,2653.2,1.808]
[1727444162120,3.23,2653.3,2653.2,1.808]
[1727444162319,3.60679,2653.3,2653.2,0.6175]
[1727444163322,4.54877,2653.3,2653.2,0.6175]
[1727444163519,0.3768,2653.2,2653.1,3.2078]
[1727444165522,3.6068,2653.3,2653.1,3.2078]
[1727444165909,3.23,2653.5,2653.2,4.14559]
[1727444166113,3.23,2653.5,2653.3,1.183]
[1727444166318,0.37678,2653.4,2653.3,1.183]
[1727444166522,3.60677,2653.5,2653.3,1.183]
[1727444166822,3.60676,2653.5,2653.3,1.183]
[1727444167009,3.23,2653.5,2653.4,0.602]
[1727444167822,3.60676,2653.5,2653.4,0.602]
[1727444168222,3.23,2653.5,2653.4,0.602]
[1727444168417,3.60676,2653.5,2653.4,0.602]
[1727444168623,3.23,2653.5,2653.4,0.602]
[1727444169317,5.01975,2654.0,2653.4,0.602]
[1727444169516,0.37673,2653.8,2653.7,3.2078]
[1727444169724,0.37673,2653.8,2653.4,0.97877]
[1727444169725,0.37671,2653.9,2653.5,0.37676]
[1727444170129,0.37671,2653.9,2653.7,3.2078]
[1727444170513,3.60672,2653.8,2653.7,3.2078]
[1727444171115,0.37676,2653.5,2653.4,0.602]
[1727444171321,3.60676,2653.5,2653.4,0.602]
[1727444172328,3.23,2653.5,2653.4,0.602]
[1727444172518,3.23,2653.7,2653.4,3.39199109]
[1727444172827,3.23,2653.7,2653.4,0.602]
[1727444173017,0.37676,2653.6,2653.4,0.602]
[1727444173520,3.60676,2653.5,2653.4,0.602]
[1727444174016,9.85976,2653.5,2653.4,0.602]
[1727444174216,0.37678,2653.4,2653.3,1.183]
[1727444174720,0.37678,2653.4,2653.3,2.50396777]
[1727444175115,0.37678,2653.4,2653.3,3.97447471]
[1727444175318,3.60673,2653.7,2653.3,8.12006471]
[1727444175528,0.37675,2653.6,2653.4,2.79626479]
[1727444175727,3.23,2653.7,2653.4,2.79626479]
[1727444175728,3.23,2653.7,2653.5,1.32172414]
[1727444175935,3.23,2653.7,2653.4,1.85206702]
[1727444176234,0.37675,2653.6,2653.5,1.32171698]
[1727444176418,10.80163,2653.6,2653.5,1.32171698]
[1727444176616,0.37676,2653.5,2653.4,1.47637153]
[1727444176826,0.37676,2653.5,2653.4,2.79919028]
[1727444177019,1.31867,2653.5,2653.4,2.79919028]
[1727444177225,1.31867,2653.5,2653.4,2.80023171]
[1727444177729,9.483,2653.6,2653.4,1.32386018]
[1727444177925,9.85975,2653.6,2653.5,2.80169018]
[1727444178122,9.85975,2653.6,2653.5,1.32386018]
[1727444178323,9.85975,2653.6,2653.5,3.28859705]
[1727444178536,14.57043,2653.6,2653.5,1.32386018]
[1727444178728,17.77823,2653.6,2653.5,2.80278886]
[1727444179233,14.57043,2653.6,2653.5,3.28859705]
[1727444179630,17.77823,2653.6,2653.5,3.28859705]
[1727444179827,17.77823,2653.6,2653.5,1.32386018]
[1727444180032,17.77823,2653.6,2653.5,3.28859705]
[1727444181028,14.57043,2653.6,2653.5,3.28859705]
[1727444181231,17.77823,2653.6,2653.5,3.28859705]
[1727444181618,14.57043,2653.6,2653.5,5.94132229]
[1727444181822,14.57043,2653.6,2653.5,3.28859705]
[1727444182023,14.57043,2653.6,2653.5,5.94134927]
[1727444182233,14.57043,2653.6,2653.5,3.29107562]
[1727444182533,14.57043,2653.6,2653.5,5.94378419]
[1727444182929,13.62855,2653.6,2653.5,5.94378419]
[1727444183136,9.85975,2653.6,2653.5,3.29107562]
[1727444183325,14.57043,2653.6,2653.5,5.94382002]
[1727444183726,10.80163,2653.6,2653.5,5.94393994]
[1727444184734,14.57043,2653.6,2653.5,5.94393994]
[1727444184935,10.80163,2653.6,2653.5,5.95343264]
[1727444185133,10.80163,2653.6,2653.5,3.97920307]
[1727444185528,14.57043,2653.6,2653.5,3.97920307]
[1727444185930,14.57043,2653.6,2653.5,5.95373213]
[1727444186146,14.57043,2653.6,2653.5,3.97920307]
[1727444186338,1.31867,2653.5,2653.4,2.44152542]
[1727444186537,6.62979,2653.3,2653.2,2.44152542]
[1727444186840,1.31902,2652.8,2652.7,4.07663051]
[1727444187028,0.37689,2652.6,2652.5,0.598]
[1727444187331,3.60689,2652.6,2652.5,1.15101286]
[1727444187540,3.23,2652.6,2652.5,1.1509733]
[1727444187924,3.23,2652.6,2652.5,5.74885075]
[1727444188129,3.23,2652.6,2652.5,5.74910913]
[1727444188337,3.23,2652.6,2652.5,4.73037658]
[1727444188338,1.91021706,2652.6,2652.5,4.73037658]
[1727444188730,1.91021706,2652.6,2652.5,0.598]
[1727444189340,2.28710706,2652.6,2652.5,0.598]
[1727444189934,0.37692,2652.4,2652.3,1.1468]
[1727444190136,3.60692,2652.4,2652.3,1.1468]
[1727444190331,3.60692,2652.4,2652.3,0.5806]
[1727444190532,0.37696,2652.1,2652.0,0.5892]
[1727444190743,3.23,2652.1,2652.0,0.5892]
[1727444191045,3.23,2652.1,2652.0,1.14178527]
[1727444191232,3.60696,2652.1,2652.0,0.5892]
[1727444191439,3.60696,2652.1,2651.9,0.5737]
[1727444191742,3.23,2652.1,2651.9,0.5737]
[1727444192043,3.60696,2652.1,2651.9,0.5737]
[1727444192237,3.23,2652.1,2651.9,0.5737]
[1727444192738,3.23,2652.1,2651.5,3.41813559]
[1727444192739,9.483,2652.1,2651.5,6.13763051]
[1727444192939,3.23,2651.6,2651.5,3.2078]
[1727444193135,3.23,2651.6,2651.5,3.76000438]
[1727444193337,3.23,2651.6,2651.5,6.979]
[1727444193653,3.60703,2651.6,2651.5,3.2078]
[1727444194040,3.60703,2651.6,2651.5,4.68547879]
[1727444194242,3.23,2651.6,2651.4,1.47757784]
[1727444194538,3.23,2651.6,2651.1,0.5851]
[1727444194539,0.37705,2651.5,2651.1,1.47757784]
[1727444194745,0.37705,2651.5,2651.0,5.25377784]
[1727444194746,0.3771,2651.1,2651.0,5.25377784]
[1727444194949,0.3771,2651.1,2651.0,1.47757784]
[1727444195136,0.94284,2650.9,2650.3,1.2021]
[1727444195341,3.23,2650.4,2650.3,1.2021]
[1727444195839,0.37716,2650.8,2650.3,1.2021]
[1727444195840,3.23,2650.5,2650.3,5.35212]
[1727444196039,4.45,2651.0,2650.5,3.2078]
[1727444196233,3.23,2651.0,2650.5,3.2078]
[1727444196543,1.22,2651.1,2650.3,1.2021]
[1727444196544,3.23,2650.8,2650.3,1.2021]
[1727444196731,3.60715,2650.8,2650.3,1.2021]
[1727444197041,3.23,2650.8,2650.5,3.2078]
[1727444197640,0.37716,2650.7,2650.5,3.2078]
[1727444198938,3.23,2650.8,2650.5,3.2078]
[1727444199146,0.37717,2650.7,2650.5,3.2078]
[1727444199442,0.37717,2650.7,2650.3,1.2021]
[1727444200246,3.23,2650.8,2650.5,3.2078]
[1727444200549,0.37717,2650.7,2650.5,3.2078]
[1727444202037,0.37717,2650.6,2650.5,3.2078]
[1727444202238,0.37717,2650.7,2650.5,3.2078]
[1727444202538,0.37717,2650.7,2650.3,1.57931]
[1727444202736,3.04088866,2650.8,2650.5,3.2078]
[1727444202942,3.04088866,2650.8,2650.6,0.6152]
[1727444203336,0.37716,2650.7,2650.6,0.6152]
[1727444203737,0.37716,2650.7,2650.3,1.2021]
[1727444203738,2.66373866,2650.8,2650.3,1.2021]
[1727444203945,5.37063,2651.0,2650.3,1.2191]
[1727444203946,4.17298,2650.6,2650.3,1.2191]
[1727444204143,4.17298,2650.6,2649.8,0.46528]
[1727444204144,6.4378,2650.4,2649.9,0.5854]
[1727444204339,3.23,2650.8,2649.9,0.5854]
[1727444204340,3.60726,2650.0,2649.9,0.5854]
[1727444204849,3.23,2650.2,2649.9,0.5854]
[1727444205646,0.37726,2650.0,2649.9,0.5854]
[1727444206041,3.23,2650.2,2649.9,0.5854]
[1727444206237,0.37725,2650.1,2649.9,0.5854]
[1727444206443,3.23,2650.2,2649.9,0.5854]
[1727444206641,0.37726,2650.1,2649.9,0.5854]
[1727444206843,3.23,2650.2,2649.9,0.5854]
[1727444207545,0.37726,2650.0,2649.9,0.5854]
[1727444207935,0.37725,2650.1,2649.9,0.5854]
[1727444208147,3.23,2650.2,2649.9,0.5854]
[1727444208548,0.37726,2650.0,2649.9,0.5854]
[1727444208745,3.23,2650.2,2649.9,0.5854]
[1727444209143,0.37725,2650.1,2649.9,0.5854]
[1727444209340,3.23,2650.2,2649.9,0.5854]
[1727444209645,0.37725,2650.1,2649.9,0.5854]
[1727444210044,3.60724,2650.2,2650.0,3.2078]
[1727444210244,3.23,2650.2,2650.0,3.2078]
[1727444210454,0.37724,2650.1,2650.0,3.2078]
[1727444210651,3.60724,2650.2,2650.0,3.58506]
[1727444210838,3.23,2650.2,2650.0,3.58506]
[1727444211044,0.37722,2650.3,2650.1,0.37724]
[1727444211258,3.60721,2650.4,2650.1,0.37724]
[1727444211445,3.60721,2650.4,2650.2,0.97073]
[1727444211637,3.60721,2650.4,2650.3,0.5642]
[1727444211843,4.45517,2650.7,2650.4,0.3772]
[1727444212043,0.37717,2650.6,2650.3,4.14921]
[1727444212244,0.37717,2650.7,2650.4,0.3772]
[1727444212441,0.37717,2650.6,2650.5,0.6035]
[1727444212653,3.23,2650.9,2650.5,0.6035]
[1727444212654,0.37716,2650.7,2650.5,0.6035]
[1727444212951,3.23,2650.9,2650.5,0.6035]
[1727444212952,0.37717,2650.6,2650.5,0.6035]
[1727444213352,3.7728,2650.6,2650.3,0.5642]
[1727444213550,4.17293,2650.7,2650.3,0.5642]
[1727444213551,3.6072,2650.4,2650.3,0.5642]
[1727444214144,0.37722,2650.3,2650.2,0.5935]
[1727444214647,3.60721,2650.4,2650.2,0.5935]
[1727444216656,0.37724,2650.1,2650.0,3.2078]
[1727444216849,3.60724,2650.1,2650.0,3.2078]
[1727444217450,0.37733,2649.6,2649.3,3.778]
[1727444217753,3.60733,2649.5,2649.4,0.6103]
[1727444218445,3.60733,2649.5,2649.3,4.3711]
[1727444218446,0.37734,2649.4,2649.3,4.3711]
[1727444218751,0.37734,2649.4,2648.8,0.46542]
[1727444218752,0.37737,2649.2,2648.9,3.813]
[1727444218948,2.71823907,2649.3,2648.9,5.35371]
[1727444219145,0.37732,2649.6,2649.1,3.2078]
[1727444219347,0.37732,2649.6,2649.1,3.58518]
[1727444219548,0.37732,2649.6,2649.2,0.37737]
[1727444219747,0.37733,2649.5,2649.1,3.2078]
[1727444219947,0.37732,2649.6,2649.2,0.37736]
[1727444220154,3.23,2649.7,2649.1,3.58518]
[1727444220457,3.23,2649.5,2649.1,3.2078]
[1727444220761,0.37739,2649.1,2648.9,4.9763]
[1727444221053,3.23,2649.0,2648.6,3.2078]
[1727444221255,3.23,2648.7,2648.6,3.2078]
[1727444221560,3.23,2648.8,2648.6,3.2078]
[1727444221746,0.37741,2649.0,2648.6,3.2078]
[1727444221946,3.23,2648.8,2648.6,3.58526]
[1727444222260,3.23,2649.0,2648.6,3.2078]
[1727444222457,3.23,2649.0,2648.7,0.37743]
[1727444222658,3.23,2649.2,2648.8,0.37742]
[1727444222857,3.23,2649.2,2648.9,3.7784]
[1727444223068,3.60738,2649.2,2648.9,3.7784]
[1727444224458,12.6948,2649.6,2648.9,3.7784]
[1727444224656,3.23,2649.2,2649.0,1.194]
[1727444225753,3.23,2649.2,2648.9,0.5706]
[1727444225754,0.37739,2649.1,2648.9,0.5706]
[1727444225959,3.6074,2649.0,2648.9,0.5706]
[1727444226162,3.6074,2649.0,2648.6,3.2078]
[1727444226462,3.6074,2649.0,2648.7,0.37744]
[1727444226957,0.37742,2648.9,2648.6,3.58525]
[1727444227153,0.37742,2648.9,2648.7,0.37744]
[1727444227361,3.23,2648.8,2648.7,0.37744]
[1727444227562,3.23,2648.8,2648.6,3.58525]
[1727444227759,3.60744,2648.8,2648.6,3.2078]
[1727444227965,3.23,2648.8,2648.6,3.2078]
[1727444228260,3.23,2648.8,2648.7,0.37744]
[1727444228965,3.23,2649.0,2648.9,0.37741]
[1727444229165,3.23,2649.0,2648.9,3.58522]
[1727444229562,3.8117,2649.2,2648.9,3.58522]
[1727444229760,0.3774,2649.1,2648.9,3.58522]
[1727444230156,3.8117,2649.2,2648.9,3.58522]
[1727444230367,3.8117,2649.2,2649.0,0.3774]
[1727444230560,3.60735,2649.4,2649.1,0.37738]
[1727444230760,3.23,2649.2,2649.1,0.37738]
[1727444231159,3.23,2649.4,2649.2,0.37737]
[1727444231566,3.23,2649.6,2649.2,3.2078]
[1727444231871,3.23,2650.0,2649.5,3.2078]
[1727444232059,3.23,2650.0,2649.8,3.2078]
[1727444232258,0.37724,2650.2,2649.6,1.7551]
[1727444232259,3.23,2650.2,2649.9,3.2078]
[1727444232456,3.23,2650.2,2650.0,0.37725]
[1727444232767,3.23,2650.2,2649.9,3.2078]
[1727444232966,3.23,2650.2,2649.9,3.58507]
[1727444233270,3.23,2650.4,2649.9,3.2078]
[1727444233470,3.23,2650.4,2650.0,0.37725]
[1727444233673,3.23,2650.4,2650.1,0.37724]
[1727444234168,3.23,2650.4,2650.2,1.1773]
[1727444236061,3.23,2650.4,2649.9,3.2078]
[1727444236269,3.23,2650.0,2649.6,1.7187]
[1727444236471,3.23,2649.7,2649.6,2.69487641]
[1727444236673,3.23,2649.7,2649.6,1.7187]
[1727444237169,7.0044,2649.7,2649.6,0.571]
[1727444237371,3.23,2649.7,2649.6,0.571]
[1727444237562,3.23,2649.7,2649.2,4.3803]
[1727444237563,7.3817,2649.7,2649.4,0.97617641]
[1727444237868,3.23,2649.5,2649.3,1.58597641]
[1727444238174,3.23,2649.5,2649.3,1.96333641]
[1727444238362,3.23,2649.5,2649.4,0.97617641]
[1727444238562,1.51266,2650.0,2649.4,0.97617641]
[1727444238563,0.37731,2649.7,2649.4,0.97617641]
[1727444238766,0.37732,2649.6,2649.5,0.98349768]
[1727444238973,3.99,2649.9,2649.5,0.98349768]
[1727444238974,0.37731,2649.7,2649.5,0.98349768]
[1727444239766,0.37731,2649.7,2649.6,0.98349768]
[1727444240274,0.37732,2649.6,2649.5,3.2078]
[1727444240573,0.37732,2649.6,2649.5,1.27432519]
[1727444240768,3.99,2649.9,2649.5,0.98443001]
[1727444240769,4.15103,2649.8,2649.5,0.98443001]
[1727444240974,4.36732,2649.6,2649.5,0.98443001]
[1727444241273,4.36732,2649.6,2649.4,0.98447716]
[1727444241274,3.99,2649.6,2649.4,0.98447716]
[1727444241472,0.37733,2649.5,2649.4,0.98447716]
[1727444241676,0.37734,2649.4,2649.3,0.98447716]
[1727444241882,0.37734,2649.5,2649.3,0.98447716]
[1727444242177,5.38203,2649.8,2649.4,0.98447716]
[1727444242178,7.1978,2649.8,2649.4,0.98447716]
[1727444242362,4.36729,2649.8,2649.5,0.98447716]
[1727444242968,3.99,2649.8,2649.5,0.98447716]
[1727444243167,0.37732,2649.6,2649.5,0.98447716]
[1727444243369,0.37734,2649.4,2649.3,0.98447716]
[1727444243677,4.71767,2649.7,2649.1,0.6062]
[1727444243678,0.37736,2649.3,2649.1,0.6062]
[1727444243876,0.37735,2649.4,2649.2,1.27513036]
[1727444244078,0.37735,2649.4,2649.3,0.9847297]
[1727444244272,3.99,2649.5,2649.3,0.9847297]
[1727444244784,6.257,2649.6,2649.2,4.5698897]
[1727444244971,0.37736,2649.3,2649.2,0.9847297]
[1727444245171,9.4648,2649.5,2649.1,0.9847297]
[1727444245478,0.37737,2649.2,2649.1,0.9847297]
[1727444246871,3.99,2649.3,2649.1,0.9847297]
[1727444247075,0.97075,2649.4,2649.1,0.9847297]
[1727444247575,0.37736,2649.3,2649.2,0.9847297]
[1727444247778,0.37737,2649.2,2649.1,0.98524177]
[1727444248272,0.37736,2649.3,2649.1,0.98524177]
[1727444248471,0.37737,2649.2,2649.1,0.98524177]
[1727444249576,0.37737,2649.3,2649.1,0.98524177]
[1727444249766,0.5934,2649.4,2649.1,0.98524177]
[1727444249767,0.37737,2649.2,2649.1,0.98524177]
[1727444249967,0.37737,2649.3,2649.1,2.25986621]
[1727444250180,0.37737,2649.2,2649.1,0.98524177]
[1727444250379,0.37737,2649.3,2649.1,0.98524177]
[1727444251077,0.37737,2649.2,2649.1,0.98524177]
[1727444251266,0.37737,2649.2,2649.1,2.25992196]
[1727444251672,0.37737,2649.2,2649.1,2.25990147]
[1727444252377,0.37737,2649.2,2649.1,2.25991245]
[1727444252878,7.57781,2649.2,2649.1,0.98524177]
[1727444253081,11.35221,2649.2,2649.1,0.98524177]
[1727444253271,7.20046,2649.2,2649.0,0.98570595]
[1727444253466,7.57783,2649.2,2649.1,0.98570447]
[1727444253879,11.35223,2649.2,2649.1,0.98570447]
[1727444254081,6.257,2649.2,2649.1,0.98570447]
[1727444254275,6.63437,2649.2,2649.1,0.98570447]
[1727444254580,6.257,2649.2,2649.1,0.98570447]
[1727444254786,6.63437,2649.2,2649.1,0.98570447]
[1727444255173,7.57781,2649.2,2649.1,0.98570447]
[1727444255376,7.57787,2649.1,2649.0,0.98570447]
[1727444255588,7.57787,2649.1,2649.0,2.26056595]
[1727444255780,7.57787,2649.1,2649.0,0.98570447]
[1727444255978,0.3774,2649.0,2648.9,0.98570447]
[1727444256175,10.6244,2649.0,2648.9,0.98570447]
[1727444256381,0.37742,2648.9,2648.8,0.98570447]
[1727444256586,0.37742,2648.9,2648.8,1.27487165]
[1727444256784,0.37742,2648.9,2648.8,2.26069569]
[1727444256985,0.37742,2648.9,2648.8,2.75348391]
[1727444257183,0.37742,2648.9,2648.8,2.75356417]
[1727444257386,9.4648,2648.9,2648.7,0.98585879]
[1727444257577,9.4648,2648.9,2648.5,1.1873]
[1727444257578,7.20062,2648.7,2648.5,0.98585879]
[1727444257780,7.20062,2648.7,2648.2,2.54952547]
[1727444257781,6.63448,2648.5,2648.3,0.98585879]
[1727444257998,1.274,2648.4,2648.2,1.58505879]
[1727444258288,7.531,2648.4,2648.2,1.58505879]
[1727444258481,0.3775,2648.3,2648.2,1.58505879]
[1727444258977,3.5853,2648.3,2648.2,0.98585879]
[1727444259182,3.2078,2648.3,2648.1,0.98585879]
[1727444259788,7.9085,2648.4,2648.1,0.98585879]
[1727444259992,9.8423,2648.4,2648.2,0.98585879]
[1727444260188,9.8423,2648.4,2648.1,0.98585879]
[1727444260189,7.9085,2648.4,2648.1,0.98585879]
[1727444260399,3.24,2648.2,2648.1,1.47861226]
[1727444260691,3.24,2648.2,2648.1,2.75333635]
[1727444261283,6.6345,2648.4,2648.1,8.25852409]
[1727444261284,3.24,2648.4,2648.1,8.25852409]
[1727444261479,3.24,2648.4,2648.3,0.98554727]
[1727444261910,3.24,2648.8,2648.4,0.37748]
[1727444262191,0.37744,2648.8,2648.6,0.9855976]
[1727444262386,3.24,2648.7,2648.6,0.9855976]
[1727444262586,3.24,2648.7,2648.6,2.75290479]
[1727444263293,3.24,2648.7,2648.6,1.27450838]
[1727444263495,3.24,2648.7,2648.6,2.26027917]
[1727444263696,3.24,2648.7,2648.6,1.27450838]
[1727444263897,3.24,2648.7,2648.6,2.75290479]
[1727444264192,3.24,2648.8,2648.6,8.25750838]
[1727444264393,3.24,2648.8,2648.7,2.75307082]
[1727444265594,3.24,2648.8,2648.7,2.2601973]
[1727444265595,3.61743,2648.8,2648.7,2.2601973]
[1727444265796,0.37744,2648.7,2648.6,0.98568892]
[1727444265994,1.32111,2648.6,2648.5,0.98568892]
[1727444266193,1.32111,2648.6,2648.4,0.6051]
[1727444266194,0.37747,2648.5,2648.4,1.59078892]
[1727444266401,3.61747,2648.5,2648.4,1.59078892]
[1727444266799,3.61747,2648.5,2648.4,0.6051]
[1727444268195,3.61747,2648.5,2648.2,2.15938892]
[1727444268393,3.6175,2648.3,2648.2,1.58248892]
[1727444268700,3.6175,2648.3,2648.1,0.98568892]
[1727444268701,0.37752,2648.2,2648.1,0.98568892]
[1727444269106,0.37753,2648.1,2648.0,0.98568892]
[1727444269307,3.61753,2648.1,2648.0,0.98568892]
[1727444269503,3.24,2648.1,2648.0,0.98568892]
[1727444269905,3.24,2648.1,2648.0,2.25981076]
[1727444270100,0.37752,2648.2,2648.0,3.7383732]
[1727444270101,3.24,2648.2,2648.0,3.7383732]
[1727444270309,0.6085,2648.7,2648.1,5.13879059]
[1727444270310,3.24,2648.4,2648.1,5.13879059]
[1727444270510,3.24,2648.4,2648.1,1.36279059]
[1727444270705,3.24,2648.4,2648.2,0.98527059]
[1727444270905,0.37753,2648.1,2647.8,0.98527059]
[1727444271104,3.24,2648.1,2647.9,2.19487059]
[1727444271405,3.61753,2648.1,2647.9,1.2096]
[1727444271606,7.0168,2648.1,2647.7,0.98527059]
[1727444271806,3.24,2647.9,2647.7,1.61887059]
[1727444272307,3.24,2647.9,2647.7,0.6336]
[1727444272510,3.61757,2647.9,2647.7,1.61887059]
[1727444272808,3.24,2647.9,2647.8,0.98527059]
[1727444273011,3.24,2648.2,2647.7,1.61887059]
[1727444273216,3.24,2648.2,2648.0,0.98527059]
[1727444273405,3.24,2648.2,2648.1,0.576]
[1727444274110,3.24,2648.2,2648.1,5.33727059]
[1727444274312,3.24,2648.2,2648.1,0.576]
[1727444274517,0.37753,2648.1,2648.0,0.98527059]
[1727444274809,0.37753,2648.1,2647.9,3.2078]
[1727444274810,0.37754,2648.0,2647.9,3.2078]
[1727444275402,4.15434,2648.0,2647.9,3.2078]
[1727444275603,4.15434,2648.0,2647.4,1.95032547]
[1727444275604,0.37762,2647.5,2647.4,0.98527059]
[1727444275819,3.24,2647.5,2647.3,0.98527059]
[1727444276111,6.4478,2647.5,2647.2,2.17597059]
[1727444276316,3.24,2647.3,2647.2,1.1907]
[1727444276522,3.24,2647.3,2646.8,2.46383303]
[1727444276812,3.2078,2647.4,2647.0,1.1907]
[1727444277015,3.24,2647.3,2647.0,2.17597059]
[1727444277313,3.24,2647.3,2647.0,1.1907]
[1727444277517,3.24,2647.1,2647.0,1.1907]
[1727444278409,0.37765,2647.3,2647.0,1.1907]
[1727444278611,7.57544,2647.4,2647.0,1.1907]
[1727444278813,3.58544,2647.4,2647.0,1.1907]
[1727444279205,0.37765,2647.3,2647.0,1.1907]
[1727444279410,3.58544,2647.4,2647.0,1.1907]
[1727444279707,3.2078,2647.4,2647.0,1.1907]
[1727444280817,3.58543,2647.4,2647.0,1.1907]
[1727444281019,3.99,2647.3,2647.0,1.1907]
[1727444281526,3.2078,2647.4,2647.0,1.1907]
[1727444281819,2.64100127,2647.4,2647.0,1.56839]
[1727444282012,2.64100127,2647.4,2647.0,1.56838]
[1727444282412,2.64100127,2647.4,2647.0,1.1907]
[1727444283126,4.4758,2647.8,2647.0,9.15946944]
[1727444283311,3.58534,2648.1,2647.3,3.2078]
[1727444283516,3.2078,2648.1,2647.6,0.37759]
[1727444283714,5.258,2648.2,2647.7,1.1517]
[1727444283922,0.37755,2648.0,2647.7,1.1517]
[1727444284220,0.37756,2647.9,2647.7,1.1517]
[1727444284422,4.93387,2648.0,2647.4,0.98336944]
[1727444284615,4.93387,2648.0,2646.8,0.101]
[1727444284616,0.37766,2647.2,2646.9,0.98336944]
[1727444284817,3.2078,2647.2,2646.8,1.1517]
[1727444285011,7.57542,2647.5,2646.8,1.1517]
[1727444285318,7.57542,2647.5,2646.9,1.36106944]
[1727444285517,7.57542,2647.5,2646.9,0.98336944]
[1727444285718,0.37763,2647.4,2646.8,2.51277944]
[1727444285918,7.1978,2647.5,2646.8,2.13506944]
[1727444286121,3.2078,2647.5,2646.9,0.98336944]
[1727444286316,0.5942,2647.8,2647.0,5.47595116]
[1727444286519,0.97178,2647.8,2647.2,0.37765]
[1727444286819,0.97178,2647.8,2647.2,1.36101944]
[1727444287113,0.5942,2647.8,2647.1,0.98336944]
[1727444287317,3.2078,2647.6,2647.1,0.98336944]
[1727444287513,3.2078,2647.6,2647.1,1.36103944]
[1727444287714,3.2078,2647.6,2647.2,0.37766]
[1727444287914,0.97178,2647.8,2647.2,1.36102944]